[Event "January 2 Early 2024"]
[Site "https://www.chess.com"]
[Date "2024.01.02"]
[Round "1"]
[White "Andersson, Bjorn 1960"]
[Black "Agibileg, Uurtsaikh"]
[Result "0-1"]
[Board "174"]
[TimeControl "180+1"]
[WhiteFideId "1700545"]
[BlackFideId "4901606"]
[WhiteElo "2338"]
[BlackElo "2684"]
[WhiteTeam "SWE"]
[BlackTeam "MGL"]
[WhiteClock "0:00:00"]
[BlackClock "0:00:03"]

1. e4 {[%clk 0:02:59]}  e5 {[%clk 0:02:54]} 2. Nf3 {[%clk 0:02:59]}  Nc6 {[%clk 0:02:53]} 3. Bc4 {[%clk 0:02:58]}  Nf6 {[%clk 0:02:53]} 4. Ng5 {[%clk 0:02:57]}  d5 {[%clk 0:02:52]} 5. exd5 {[%clk 0:02:58]}  Na5 {[%clk 0:02:52]} 6. Bb5+ {[%clk 0:02:58]}  c6 {[%clk 0:02:52]} 7. dxc6 {[%clk 0:02:59]}  bxc6 {[%clk 0:02:52]} 8. Bd3 {[%clk 0:03:00]}  Nd5 {[%clk 0:02:43]} 9. Nf3 {[%clk 0:02:59]}  Nf4 {[%clk 0:02:40]} 10. Bf1 {[%clk 0:02:36]}  Bc5 {[%clk 0:02:37]} 11. d4 {[%clk 0:02:24]}  Bb6 {[%clk 0:01:25]} 12. Bxf4 {[%clk 0:01:58]}  exf4 {[%clk 0:01:24]} 13. Be2 {[%clk 0:01:56]}  O-O {[%clk 0:01:22]} 14. O-O {[%clk 0:01:56]}  Be6 {[%clk 0:01:13]} 15. c3 {[%clk 0:01:44]}  Nc4 {[%clk 0:01:03]} 16. Qc1 {[%clk 0:01:38]}  g5 {[%clk 0:01:01]} 17. Nbd2 {[%clk 0:01:25]}  Nxd2 {[%clk 0:00:48]} 18. Qxd2 {[%clk 0:01:26]}  Kh8 {[%clk 0:00:44]} 19. Rfe1 {[%clk 0:01:21]}  Rg8 {[%clk 0:00:35]} 20. Ne5 {[%clk 0:01:06]}  Rc8 {[%clk 0:00:33]} 21. Bg4 {[%clk 0:00:59]}  Qf6 {[%clk 0:00:20]} 22. Qe2 {[%clk 0:00:39]}  Rge8 {[%clk 0:00:18]} 23. Bxe6 {[%clk 0:00:39]}  fxe6 {[%clk 0:00:18]} 24. Qh5 {[%clk 0:00:39]}  c5 {[%clk 0:00:17]} 25. Nf7+ {[%clk 0:00:35]}  Kg7 {[%clk 0:00:17]} 26. Nxg5 {[%clk 0:00:26]}  cxd4 {[%clk 0:00:17]} 27. Qxh7+ {[%clk 0:00:24]}  Kf8 {[%clk 0:00:17]} 28. Qh5 {[%clk 0:00:17]}  Kg7 {[%clk 0:00:14]} 29. Ne4 {[%clk 0:00:15]}  Qe7 {[%clk 0:00:13]} 30. cxd4 {[%clk 0:00:12]}  Bxd4 {[%clk 0:00:12]} 31. Qg4+ {[%clk 0:00:12]}  Kh8 {[%clk 0:00:12]} 32. Qxf4 {[%clk 0:00:12]}  Rg8 {[%clk 0:00:09]} 33. Qh6+ {[%clk 0:00:11]}  Qh7 {[%clk 0:00:08]} 34. Qxh7+ {[%clk 0:00:11]}  Kxh7 {[%clk 0:00:09]} 35. Rad1 {[%clk 0:00:11]}  Bxb2 {[%clk 0:00:08]} 36. Rd7+ {[%clk 0:00:11]}  Rg7 {[%clk 0:00:09]} 37. Rxg7+ {[%clk 0:00:08]}  Kxg7 {[%clk 0:00:10]} 38. g3 {[%clk 0:00:07]}  Rc2 {[%clk 0:00:10]} 39. Ng5 {[%clk 0:00:06]}  e5 {[%clk 0:00:08]} 40. Nf3 {[%clk 0:00:06]}  Kf6 {[%clk 0:00:07]} 41. Kf1 {[%clk 0:00:04]}  a5 {[%clk 0:00:06]} 42. Re2 {[%clk 0:00:05]}  Rc1+ {[%clk 0:00:07]} 43. Kg2 {[%clk 0:00:05]}  Bc3 {[%clk 0:00:06]} 44. h4 {[%clk 0:00:05]}  a4 {[%clk 0:00:06]} 45. Ng5 {[%clk 0:00:06]}  Kg6 {[%clk 0:00:03]} 46. Ne4 {[%clk 0:00:04]}  Bd4 {[%clk 0:00:03]} 47. Nd6 {[%clk 0:00:02]}  a3 {[%clk 0:00:03]} 48. Nb5 {[%clk 0:00:02]}  Bb2 {[%clk 0:00:04]} 49. Re3 {[%clk 0:00:03]}  Ra1 {[%clk 0:00:02]} 50. Nxa3 {[%clk 0:00:04]}  Rxa2 {[%clk 0:00:03]} 51. Nc4 {[%clk 0:00:04]}  Bd4 {[%clk 0:00:04]} 52. Nxe5+ {[%clk 0:00:04]}  Kf5 {[%clk 0:00:03]} 53. Nc4 {[%clk 0:00:02]}  Rc2 {[%clk 0:00:02]} 54. Rd3 {[%clk 0:00:01]}  Rxc4 {[%clk 0:00:02]} 55. Kf3 {[%clk 0:00:02]}  Bc5 {[%clk 0:00:01]} 56. Rd2 {[%clk 0:00:02]}  Ke5 {[%clk 0:00:01]} 57. Kg2 {[%clk 0:00:03]}  Rc3 {[%clk 0:00:01]} 58. Re2+ {[%clk 0:00:03]}  Kf6 {[%clk 0:00:02]} 59. Kh3 {[%clk 0:00:04]}  Rc4 {[%clk 0:00:02]} 60. f4 {[%clk 0:00:04]}  Rc3 {[%clk 0:00:03]} 61. Kg4 {[%clk 0:00:04]}  Bb4 {[%clk 0:00:03]} 62. h5 {[%clk 0:00:03]}  Rb3 {[%clk 0:00:03]} 63. Rh2 {[%clk 0:00:03]}  Be1 {[%clk 0:00:03]} 64. Rh3 {[%clk 0:00:03]}  Kg7 {[%clk 0:00:03]} 65. h6+ {[%clk 0:00:04]}  Kh7 {[%clk 0:00:03]} 66. Kh4 {[%clk 0:00:01]}  Bf2 {[%clk 0:00:03]} 67. Kg4 {[%clk 0:00:02]}  Rb4 {[%clk 0:00:03]} 68. Kh4 {[%clk 0:00:02]}  Rxf4+ {[%clk 0:00:03]} 69. Kg5 {[%clk 0:00:03]}  Rb4 {[%clk 0:00:03]} 70. g4 {[%clk 0:00:04]}  Bc5 {[%clk 0:00:03]} 71. Kf5 {[%clk 0:00:04]}  Bd6 {[%clk 0:00:02]} 72. g5 {[%clk 0:00:04]}  Rf4+ {[%clk 0:00:02]} 73. Ke6 {[%clk 0:00:04]}  Bb4 {[%clk 0:00:03]} 74. Rg3 {[%clk 0:00:04]}  Kg6 {[%clk 0:00:02]} 75. Rh3 {[%clk 0:00:03]}  Rf8 {[%clk 0:00:02]} 76. h7 {[%clk 0:00:03]}  Rh8 {[%clk 0:00:02]} 77. Ke5 {[%clk 0:00:03]}  Bc5 {[%clk 0:00:01]} 78. Ke4 {[%clk 0:00:03]}  Bb6 {[%clk 0:00:01]} 79. Rh6+ {[%clk 0:00:03]}  Kxg5 {[%clk 0:00:02]} 80. Rh1 {[%clk 0:00:04]}  Kg6 {[%clk 0:00:01]} 81. Kd5 {[%clk 0:00:05]}  Bc7 {[%clk 0:00:01]} 82. Ke6 {[%clk 0:00:06]}  Bf4 {[%clk 0:00:02]} 83. Rg1+ {[%clk 0:00:06]}  Bg5 {[%clk 0:00:02]} 84. Rh1 {[%clk 0:00:07]}  Bh6 {[%clk 0:00:03]} 85. Rg1+ {[%clk 0:00:07]}  Kxh7 {[%clk 0:00:04]} 86. Kf7 {[%clk 0:00:07]}  Rf8+ {[%clk 0:00:04]} 87. Ke6 {[%clk 0:00:08]}  Rf2 {[%clk 0:00:05]} 88. Kd7 {[%clk 0:00:08]}  Rf5 {[%clk 0:00:05]} 89. Ke6 {[%clk 0:00:08]}  Ra5 {[%clk 0:00:04]} 90. Kd7 {[%clk 0:00:09]}  Bg5 {[%clk 0:00:04]} 91. Ke6 {[%clk 0:00:09]}  Kg6 {[%clk 0:00:04]} 92. Kd7 {[%clk 0:00:10]}  Kf5 {[%clk 0:00:05]} 93. Kc6 {[%clk 0:00:10]}  Bf4 {[%clk 0:00:05]} 94. Rg8 {[%clk 0:00:10]}  Ra2 {[%clk 0:00:04]} 95. Kd5 {[%clk 0:00:09]}  Rd2+ {[%clk 0:00:03]} 96. Kc4 {[%clk 0:00:10]}  Ke4 {[%clk 0:00:02]} 97. Re8+ {[%clk 0:00:10]}  Be5 {[%clk 0:00:03]} 98. Kc5 {[%clk 0:00:08]}  Rc2+ {[%clk 0:00:03]} 99. Kb4 {[%clk 0:00:07]}  Kd5 {[%clk 0:00:03]} 100. Rd8+ {[%clk 0:00:07]}  Bd6+ {[%clk 0:00:03]} 101. Kb3 {[%clk 0:00:08]}  Rh2 {[%clk 0:00:03]} 102. Kc3 {[%clk 0:00:07]}  Rh3+ {[%clk 0:00:03]} 103. Kd2 {[%clk 0:00:07]}  Rh6 {[%clk 0:00:02]} 104. Ke3 {[%clk 0:00:06]}  Kc4 {[%clk 0:00:01]} 105. Ke4 {[%clk 0:00:07]}  Bc5 {[%clk 0:00:02]} 106. Kf5 {[%clk 0:00:07]}  Rh4 {[%clk 0:00:01]} 107. Kg5 {[%clk 0:00:07]}  Rh1 {[%clk 0:00:02]} 108. Kf5 {[%clk 0:00:07]}  Re1 {[%clk 0:00:02]} 109. Rc8 {[%clk 0:00:05]}  Kd5 {[%clk 0:00:02]} 110. Rd8+ {[%clk 0:00:05]}  Bd6 {[%clk 0:00:03]} 111. Kg4 {[%clk 0:00:04]}  Ke5 {[%clk 0:00:02]} 112. Kf3 {[%clk 0:00:05]}  Rf1+ {[%clk 0:00:02]} 113. Kg2 {[%clk 0:00:05]}  Ra1 {[%clk 0:00:03]} 114. Kf3 {[%clk 0:00:05]}  Ra3+ {[%clk 0:00:02]} 115. Kg2 {[%clk 0:00:05]}  Bc5 {[%clk 0:00:03]} 116. Re8+ {[%clk 0:00:05]}  Kf4 {[%clk 0:00:03]} 117. Rf8+ {[%clk 0:00:00]}  Bxf8 {[%clk 0:00:03]} 0-1

[Event "January 2 Early 2024"]
[Site "https://www.chess.com"]
[Date "2024.01.02"]
[Round "1"]
[White "Han, Yichen"]
[Black "Lima, Artur Tin Lun Dai"]
[Result "1-0"]
[Board "177"]
[TimeControl "180+1"]
[WhiteFideId "1054430"]
[BlackFideId "22773150"]
[WhiteElo "2677"]
[BlackElo "2336"]
[WhiteTeam "NED"]
[BlackTeam "BRA"]
[WhiteClock "0:00:18"]
[BlackClock "0:00:45"]

1. Nf3 {[%clk 0:03:00]}  Nf6 {[%clk 0:02:56]} 2. b3 {[%clk 0:03:00]}  d5 {[%clk 0:02:51]} 3. Bb2 {[%clk 0:02:59]}  e6 {[%clk 0:02:52]} 4. e3 {[%clk 0:02:56]}  Be7 {[%clk 0:02:52]} 5. c4 {[%clk 0:02:56]}  O-O {[%clk 0:02:52]} 6. g3 {[%clk 0:02:55]}  c5 {[%clk 0:02:52]} 7. cxd5 {[%clk 0:02:53]}  exd5 {[%clk 0:02:52]} 8. Bg2 {[%clk 0:02:53]}  Nc6 {[%clk 0:02:52]} 9. d4 {[%clk 0:02:53]}  Re8 {[%clk 0:02:47]} 10. O-O {[%clk 0:02:52]}  Bg4 {[%clk 0:02:46]} 11. h3 {[%clk 0:02:49]}  Bh5 {[%clk 0:02:47]} 12. g4 {[%clk 0:02:43]}  Bg6 {[%clk 0:02:46]} 13. Nc3 {[%clk 0:02:42]}  Ne4 {[%clk 0:02:45]} 14. dxc5 {[%clk 0:02:39]}  Nxc3 {[%clk 0:02:38]} 15. Bxc3 {[%clk 0:02:37]}  Bxc5 {[%clk 0:02:39]} 16. Nd4 {[%clk 0:02:32]}  Bxd4 {[%clk 0:02:31]} 17. Bxd4 {[%clk 0:02:31]}  Be4 {[%clk 0:02:29]} 18. Rc1 {[%clk 0:02:28]}  Bxg2 {[%clk 0:02:21]} 19. Kxg2 {[%clk 0:02:29]}  Re4 {[%clk 0:02:21]} 20. Bb2 {[%clk 0:02:21]}  h5 {[%clk 0:02:06]} 21. gxh5 {[%clk 0:02:11]}  Qg5+ {[%clk 0:02:04]} 22. Kh2 {[%clk 0:02:10]}  Rh4 {[%clk 0:02:00]} 23. Rg1 {[%clk 0:02:03]}  Qf5 {[%clk 0:01:53]} 24. Rxg7+ {[%clk 0:01:44]}  Kf8 {[%clk 0:01:53]} 25. Rg3 {[%clk 0:01:42]}  Qxf2+ {[%clk 0:01:50]} 26. Rg2 {[%clk 0:01:41]}  Qf5 {[%clk 0:01:50]} 27. Kg1 {[%clk 0:01:13]}  Rxh5 {[%clk 0:01:45]} 28. Qg4 {[%clk 0:01:01]}  Qxg4 {[%clk 0:01:38]} 29. hxg4 {[%clk 0:01:02]}  Rg5 {[%clk 0:01:31]} 30. Bf6 {[%clk 0:00:53]}  Rg6 {[%clk 0:01:29]} 31. g5 {[%clk 0:00:52]}  Re8 {[%clk 0:01:30]} 32. Kf2 {[%clk 0:00:47]}  Nb4 {[%clk 0:01:12]} 33. Rc7 {[%clk 0:00:27]}  Nxa2 {[%clk 0:01:01]} 34. Rh2 {[%clk 0:00:22]}  b6 {[%clk 0:00:52]} 35. Rh8+ {[%clk 0:00:20]}  Rg8 {[%clk 0:00:52]} 36. Rh7 {[%clk 0:00:21]}  Ra8 {[%clk 0:00:46]} 37. Rhxf7+ {[%clk 0:00:17]}  Ke8 {[%clk 0:00:46]} 38. Rce7+ {[%clk 0:00:17]}  Kd8 {[%clk 0:00:47]} 39. Rxa7+ {[%clk 0:00:17]}  Ke8 {[%clk 0:00:45]} 40. Rfe7+ {[%clk 0:00:18]} 1-0

[Event "January 2 Early 2024"]
[Site "https://www.chess.com"]
[Date "2024.01.02"]
[Round "1"]
[White "Weetik, Vjacheslav"]
[Black "Larina, Maria"]
[Result "1-0"]
[Board "179"]
[TimeControl "180+1"]
[WhiteFideId "4153472"]
[BlackFideId "24113182"]
[WhiteElo "2674"]
[BlackElo "2333"]
[WhiteTeam "RUS"]
[BlackTeam "FID"]
[WhiteClock "0:00:39"]
[BlackClock "0:00:38"]

1. d4 {[%clk 0:02:54]}  f5 {[%clk 0:02:58]} 2. g3 {[%clk 0:02:53]}  Nf6 {[%clk 0:02:58]} 3. Bg2 {[%clk 0:02:53]}  g6 {[%clk 0:02:58]} 4. Nd2 {[%clk 0:02:53]}  Bg7 {[%clk 0:02:58]} 5. e4 {[%clk 0:02:53]}  fxe4 {[%clk 0:02:57]} 6. Nxe4 {[%clk 0:02:53]}  Nxe4 {[%clk 0:02:57]} 7. Bxe4 {[%clk 0:02:50]}  d5 {[%clk 0:02:58]} 8. Bg2 {[%clk 0:02:47]}  O-O {[%clk 0:02:55]} 9. Ne2 {[%clk 0:02:40]}  e5 {[%clk 0:02:55]} 10. dxe5 {[%clk 0:02:40]}  c6 {[%clk 0:02:55]} 11. f4 {[%clk 0:02:38]}  Bg4 {[%clk 0:02:54]} 12. h3 {[%clk 0:02:33]}  Bf5 {[%clk 0:02:54]} 13. Nd4 {[%clk 0:02:24]}  Re8 {[%clk 0:02:18]} 14. O-O {[%clk 0:02:05]}  Qd7 {[%clk 0:02:13]} 15. Nxf5 {[%clk 0:02:02]}  Qxf5 {[%clk 0:02:14]} 16. Be3 {[%clk 0:01:54]}  Na6 {[%clk 0:02:13]} 17. Qe2 {[%clk 0:01:46]}  Nc7 {[%clk 0:02:13]} 18. Rad1 {[%clk 0:01:43]}  a6 {[%clk 0:02:11]} 19. c4 {[%clk 0:01:43]}  Rad8 {[%clk 0:02:09]} 20. Bb6 {[%clk 0:01:39]}  Qf7 {[%clk 0:01:49]} 21. cxd5 {[%clk 0:01:35]}  cxd5 {[%clk 0:01:42]} 22. Rd3 {[%clk 0:01:18]}  Kh8 {[%clk 0:01:03]} 23. Kh2 {[%clk 0:01:10]}  Rd7 {[%clk 0:00:57]} 24. Rfd1 {[%clk 0:01:05]}  Red8 {[%clk 0:00:52]} 25. e6 {[%clk 0:00:51]}  Qxe6 {[%clk 0:00:50]} 26. Qxe6 {[%clk 0:00:50]}  Nxe6 {[%clk 0:00:51]} 27. Bxd8 {[%clk 0:00:50]}  Rxd8 {[%clk 0:00:51]} 28. Rxd5 {[%clk 0:00:50]}  Rxd5 {[%clk 0:00:46]} 29. Bxd5 {[%clk 0:00:48]}  Nc5 {[%clk 0:00:43]} 30. b4 {[%clk 0:00:48]}  Na4 {[%clk 0:00:41]} 31. Bxb7 {[%clk 0:00:48]}  Bc3 {[%clk 0:00:40]} 32. Bxa6 {[%clk 0:00:42]}  Bxb4 {[%clk 0:00:40]} 33. Rd4 {[%clk 0:00:42]}  Nc5 {[%clk 0:00:38]} 34. Rxb4 {[%clk 0:00:39]}  Nxa6 {[%clk 0:00:38]} 1-0

[Event "January 2 Early 2024"]
[Site "https://www.chess.com"]
[Date "2024.01.02"]
[Round "1"]
[White "Preobrazhenskaya, Diana"]
[Black "Vlassov, Nikolai"]
[Result "0-1"]
[Board "182"]
[TimeControl "180+1"]
[WhiteFideId "34270566"]
[BlackFideId "4103360"]
[WhiteElo "2331"]
[BlackElo "2672"]
[WhiteTeam "FID"]
[BlackTeam "FID"]
[WhiteClock "0:00:07"]
[BlackClock "0:01:15"]

1. e4 {[%clk 0:03:00]}  Nc6 {[%clk 0:02:59]} 2. Nf3 {[%clk 0:02:59]}  d5 {[%clk 0:02:58]} 3. exd5 {[%clk 0:02:58]}  Qxd5 {[%clk 0:02:58]} 4. Nc3 {[%clk 0:02:58]}  Qa5 {[%clk 0:02:57]} 5. d4 {[%clk 0:02:51]}  Bg4 {[%clk 0:02:53]} 6. Be2 {[%clk 0:02:36]}  O-O-O {[%clk 0:02:52]} 7. Be3 {[%clk 0:02:34]}  Nf6 {[%clk 0:02:51]} 8. O-O {[%clk 0:02:22]}  e5 {[%clk 0:02:50]} 9. d5 {[%clk 0:01:57]}  Nxd5 {[%clk 0:02:49]} 10. Nxd5 {[%clk 0:01:57]}  Rxd5 {[%clk 0:02:49]} 11. Qc1 {[%clk 0:01:55]}  e4 {[%clk 0:02:49]} 12. Nd4 {[%clk 0:01:52]}  Nxd4 {[%clk 0:02:47]} 13. Bxg4+ {[%clk 0:01:52]}  f5 {[%clk 0:02:47]} 14. Bxd4 {[%clk 0:01:37]}  Rxd4 {[%clk 0:02:47]} 15. Be2 {[%clk 0:01:37]}  Bd6 {[%clk 0:02:47]} 16. c3 {[%clk 0:01:34]}  Qe5 {[%clk 0:02:45]} 17. g3 {[%clk 0:01:31]}  Rd5 {[%clk 0:02:44]} 18. b4 {[%clk 0:01:28]}  Be7 {[%clk 0:02:28]} 19. Qe3 {[%clk 0:01:27]}  Kb8 {[%clk 0:02:25]} 20. a4 {[%clk 0:01:23]}  g5 {[%clk 0:02:16]} 21. Bc4 {[%clk 0:01:13]}  f4 {[%clk 0:02:12]} 22. Qe1 {[%clk 0:01:10]}  Rd6 {[%clk 0:02:09]} 23. b5 {[%clk 0:01:01]}  h5 {[%clk 0:01:46]} 24. a5 {[%clk 0:00:35]}  h4 {[%clk 0:01:45]} 25. g4 {[%clk 0:00:32]}  f3 {[%clk 0:01:32]} 26. h3 {[%clk 0:00:32]}  Rf6 {[%clk 0:01:19]} 27. b6 {[%clk 0:00:30]}  Bd6 {[%clk 0:01:17]} 28. bxa7+ {[%clk 0:00:22]}  Ka8 {[%clk 0:01:17]} 29. Qe3 {[%clk 0:00:07]}  Qh2# {[%clk 0:01:15]} 0-1

[Event "January 2 Early 2024"]
[Site "https://www.chess.com"]
[Date "2024.01.02"]
[Round "1"]
[White "Shandrygin, Nikita"]
[Black "Kleibel, Uwe"]
[Result "0-1"]
[Board "183"]
[TimeControl "180+1"]
[WhiteFideId "24198668"]
[BlackFideId "1270982"]
[WhiteElo "2670"]
[BlackElo "2330"]
[WhiteTeam "RUS"]
[BlackTeam "GER"]
[WhiteClock "0:00:00"]
[BlackClock "0:01:12"]

1. Nf3 {[%clk 0:03:00]}  d5 {[%clk 0:03:00]} 2. g3 {[%clk 0:03:00]}  Nf6 {[%clk 0:03:00]} 3. Bg2 {[%clk 0:03:01]}  e6 {[%clk 0:03:01]} 4. O-O {[%clk 0:03:01]}  Be7 {[%clk 0:03:02]} 5. d4 {[%clk 0:03:02]}  O-O {[%clk 0:03:02]} 6. b3 {[%clk 0:03:03]}  a5 {[%clk 0:03:02]} 7. Bb2 {[%clk 0:03:03]}  a4 {[%clk 0:03:02]} 8. Nbd2 {[%clk 0:03:04]}  a3 {[%clk 0:03:02]} 9. Bc3 {[%clk 0:03:05]}  b5 {[%clk 0:03:03]} 10. Rc1 {[%clk 0:03:04]}  b4 {[%clk 0:03:02]} 11. Ba1 {[%clk 0:03:04]}  c5 {[%clk 0:03:02]} 12. c4 {[%clk 0:03:01]}  cxd4 {[%clk 0:02:55]} 13. Nxd4 {[%clk 0:02:57]}  Bb7 {[%clk 0:02:51]} 14. Qc2 {[%clk 0:02:50]}  Nc6 {[%clk 0:02:47]} 15. Nxc6 {[%clk 0:02:38]}  Bxc6 {[%clk 0:02:48]} 16. Rfd1 {[%clk 0:02:19]}  Rc8 {[%clk 0:02:47]} 17. e4 {[%clk 0:02:07]}  Qb6 {[%clk 0:02:20]} 18. exd5 {[%clk 0:02:03]}  exd5 {[%clk 0:02:20]} 19. c5 {[%clk 0:01:59]}  Qb7 {[%clk 0:02:11]} 20. Nf3 {[%clk 0:01:52]}  d4 {[%clk 0:02:04]} 21. Qd3 {[%clk 0:01:11]}  Be4 {[%clk 0:02:01]} 22. Nh4 {[%clk 0:01:06]}  Bxg2 {[%clk 0:01:34]} 23. Nxg2 {[%clk 0:01:00]}  Bxc5 {[%clk 0:01:33]} 24. Bxd4 {[%clk 0:00:55]}  Rfd8 {[%clk 0:01:19]} 25. Rc4 {[%clk 0:00:40]}  Bxd4 {[%clk 0:01:15]} 26. Rxd4 {[%clk 0:00:00]}  Rxd4 {[%clk 0:01:12]} 0-1

[Event "January 2 Early 2024"]
[Site "https://www.chess.com"]
[Date "2024.01.02"]
[Round "1"]
[White "Dahl, Trygve"]
[Black "Sahib Singh"]
[Result "0-1"]
[Board "184"]
[TimeControl "180+1"]
[WhiteFideId "1513427"]
[BlackFideId "25618342"]
[WhiteElo "2330"]
[BlackElo "2668"]
[WhiteTeam "NOR"]
[BlackTeam "IND"]
[WhiteClock "0:00:11"]
[BlackClock "0:00:13"]

1. Nf3 {[%clk 0:02:59]}  d5 {[%clk 0:02:58]} 2. g3 {[%clk 0:02:58]}  Nd7 {[%clk 0:02:58]} 3. d4 {[%clk 0:02:59]}  Nb6 {[%clk 0:02:58]} 4. Bg2 {[%clk 0:02:59]}  Nf6 {[%clk 0:02:56]} 5. O-O {[%clk 0:03:00]}  h6 {[%clk 0:02:47]} 6. b3 {[%clk 0:02:45]}  Bf5 {[%clk 0:02:45]} 7. Bb2 {[%clk 0:02:41]}  e6 {[%clk 0:02:44]} 8. Nbd2 {[%clk 0:02:32]}  a5 {[%clk 0:02:44]} 9. a4 {[%clk 0:02:31]}  Nbd7 {[%clk 0:02:34]} 10. c4 {[%clk 0:02:19]}  Bb4 {[%clk 0:02:28]} 11. Rc1 {[%clk 0:02:03]}  O-O {[%clk 0:02:26]} 12. Ne5 {[%clk 0:02:02]}  Nxe5 {[%clk 0:02:20]} 13. dxe5 {[%clk 0:02:00]}  Ne4 {[%clk 0:02:13]} 14. Nxe4 {[%clk 0:01:43]}  dxe4 {[%clk 0:02:12]} 15. e3 {[%clk 0:01:40]}  Qd2 {[%clk 0:01:46]} 16. Rc2 {[%clk 0:01:13]}  Qxd1 {[%clk 0:01:42]} 17. Rxd1 {[%clk 0:01:14]}  Rfd8 {[%clk 0:01:38]} 18. Rcc1 {[%clk 0:00:59]}  Bd2 {[%clk 0:01:35]} 19. Rc2 {[%clk 0:00:39]}  Bc3 {[%clk 0:01:24]} 20. Rdc1 {[%clk 0:00:16]}  Bxb2 {[%clk 0:01:21]} 21. Rxb2 {[%clk 0:00:16]}  Rd3 {[%clk 0:01:20]} 22. Bf1 {[%clk 0:00:15]}  Rd7 {[%clk 0:01:18]} 23. Be2 {[%clk 0:00:13]}  Rad8 {[%clk 0:01:15]} 24. Kf1 {[%clk 0:00:13]}  Rd2 {[%clk 0:01:13]} 25. Rcb1 {[%clk 0:00:13]}  R2d7 {[%clk 0:00:45]} 26. Ke1 {[%clk 0:00:10]}  b6 {[%clk 0:00:44]} 27. Rd1 {[%clk 0:00:09]}  Rxd1+ {[%clk 0:00:44]} 28. Bxd1 {[%clk 0:00:09]}  Kf8 {[%clk 0:00:45]} 29. Rd2 {[%clk 0:00:09]}  Rc8 {[%clk 0:00:32]} 30. c5 {[%clk 0:00:06]}  bxc5 {[%clk 0:00:31]} 31. Be2 {[%clk 0:00:06]}  Rb8 {[%clk 0:00:30]} 32. Bc4 {[%clk 0:00:05]}  Ke7 {[%clk 0:00:29]} 33. Kd1 {[%clk 0:00:04]}  Rd8 {[%clk 0:00:18]} 34. Kc2 {[%clk 0:00:05]}  Rxd2+ {[%clk 0:00:18]} 35. Kxd2 {[%clk 0:00:06]}  c6 {[%clk 0:00:18]} 36. Kc3 {[%clk 0:00:07]}  Kd8 {[%clk 0:00:18]} 37. Be2 {[%clk 0:00:07]}  Kc7 {[%clk 0:00:19]} 38. Kc4 {[%clk 0:00:07]}  Kb6 {[%clk 0:00:19]} 39. g4 {[%clk 0:00:07]}  Bh7 {[%clk 0:00:19]} 40. h3 {[%clk 0:00:08]}  f6 {[%clk 0:00:20]} 41. Kc3 {[%clk 0:00:06]}  fxe5 {[%clk 0:00:20]} 42. Kc4 {[%clk 0:00:06]}  Bg6 {[%clk 0:00:18]} 43. Bd1 {[%clk 0:00:06]}  Be8 {[%clk 0:00:18]} 44. Bc2 {[%clk 0:00:07]}  Bd7 {[%clk 0:00:18]} 45. Bxe4 {[%clk 0:00:07]}  Bc8 {[%clk 0:00:19]} 46. Kc3 {[%clk 0:00:07]}  Ba6 {[%clk 0:00:19]} 47. Bd3 {[%clk 0:00:08]}  Bxd3 {[%clk 0:00:14]} 48. Kxd3 {[%clk 0:00:09]}  g5 {[%clk 0:00:11]} 49. Kc4 {[%clk 0:00:10]}  e4 {[%clk 0:00:11]} 50. Kc3 {[%clk 0:00:10]}  Kc7 {[%clk 0:00:10]} 51. Kc4 {[%clk 0:00:10]}  Kd6 {[%clk 0:00:10]} 52. Kc3 {[%clk 0:00:11]}  Kd5 {[%clk 0:00:11]} 53. Kc2 {[%clk 0:00:10]}  c4 {[%clk 0:00:12]} 54. Kc3 {[%clk 0:00:11]}  cxb3 {[%clk 0:00:12]} 55. Kxb3 {[%clk 0:00:11]}  c5 {[%clk 0:00:11]} 56. Kc3 {[%clk 0:00:11]}  c4 {[%clk 0:00:12]} 57. Kb2 {[%clk 0:00:12]}  Kc5 {[%clk 0:00:12]} 58. Kc3 {[%clk 0:00:11]}  e5 {[%clk 0:00:13]} 0-1

[Event "January 2 Early 2024"]
[Site "https://www.chess.com"]
[Date "2024.01.02"]
[Round "1"]
[White "Tuleyeva-Aketayeva, Dana"]
[Black "Aldokhin, Ivan"]
[Result "0-1"]
[Board "186"]
[TimeControl "180+1"]
[WhiteFideId "13701932"]
[BlackFideId "24115720"]
[WhiteElo "2326"]
[BlackElo "2665"]
[WhiteTeam "KAZ"]
[BlackTeam "RUS"]
[WhiteClock "0:00:00"]
[BlackClock "0:00:38"]

1. d4 {[%clk 0:03:00]}  Nf6 {[%clk 0:02:59]} 2. Nf3 {[%clk 0:02:58]}  g6 {[%clk 0:03:00]} 3. g3 {[%clk 0:02:58]}  Bg7 {[%clk 0:03:01]} 4. Bg2 {[%clk 0:02:58]}  O-O {[%clk 0:03:01]} 5. O-O {[%clk 0:02:59]}  d6 {[%clk 0:03:02]} 6. Nc3 {[%clk 0:02:59]}  Nbd7 {[%clk 0:03:02]} 7. e4 {[%clk 0:02:58]}  e5 {[%clk 0:03:03]} 8. Be3 {[%clk 0:02:58]}  exd4 {[%clk 0:02:58]} 9. Bxd4 {[%clk 0:02:58]}  Re8 {[%clk 0:02:57]} 10. Re1 {[%clk 0:02:57]}  c6 {[%clk 0:02:49]} 11. e5 {[%clk 0:02:33]}  dxe5 {[%clk 0:02:45]} 12. Nxe5 {[%clk 0:02:32]}  Nxe5 {[%clk 0:02:42]} 13. Bxe5 {[%clk 0:02:31]}  Bf5 {[%clk 0:02:41]} 14. Qc1 {[%clk 0:01:49]}  Qa5 {[%clk 0:02:32]} 15. Bxf6 {[%clk 0:00:47]}  Bxf6 {[%clk 0:02:31]} 16. Ne4 {[%clk 0:00:43]}  Bxe4 {[%clk 0:01:45]} 17. Bxe4 {[%clk 0:00:42]}  Re7 {[%clk 0:01:12]} 18. c3 {[%clk 0:00:04]}  Rae8 {[%clk 0:01:12]} 19. Qc2 {[%clk 0:00:04]}  Bxc3 {[%clk 0:01:03]} 20. bxc3 {[%clk 0:00:04]}  f5 {[%clk 0:01:02]} 21. f3 {[%clk 0:00:01]}  fxe4 {[%clk 0:01:00]} 22. Rxe4 {[%clk 0:00:02]}  Rxe4 {[%clk 0:00:58]} 23. fxe4 {[%clk 0:00:03]}  Qc5+ {[%clk 0:00:48]} 24. Kg2 {[%clk 0:00:04]}  Qc4 {[%clk 0:00:48]} 25. Rf1 {[%clk 0:00:04]}  Re5 {[%clk 0:00:49]} 26. Rf4 {[%clk 0:00:04]}  Ra5 {[%clk 0:00:44]} 27. Qf2 {[%clk 0:00:04]}  Rxa2 {[%clk 0:00:41]} 28. Rf8+ {[%clk 0:00:04]}  Kg7 {[%clk 0:00:41]} 29. Rf4 {[%clk 0:00:01]}  Rxf2+ {[%clk 0:00:40]} 30. Rxf2 {[%clk 0:00:01]}  Qxe4+ {[%clk 0:00:40]} 31. Rf3 {[%clk 0:00:01]}  a5 {[%clk 0:00:40]} 32. h4 {[%clk 0:00:02]}  a4 {[%clk 0:00:40]} 33. h5 {[%clk 0:00:02]}  gxh5 {[%clk 0:00:39]} 34. g4 {[%clk 0:00:03]}  hxg4 {[%clk 0:00:39]} 35. Kh2 {[%clk 0:00:03]}  Qxf3 {[%clk 0:00:37]} 36. c4 {[%clk 0:00:03]}  Qf2+ {[%clk 0:00:37]} 37. Kh1 {[%clk 0:00:00]}  g3 {[%clk 0:00:38]} 0-1